{"text_format":"1","workbook":"xlsx","n_sheets":12,"sheets":["1. Forside","2. Samlet prisloft","3. Driftsomkostninger","4. Historiske investeringer","5. Gennemførte investeringer","6. Korrektion investeringer","7. Planlagte investeringer","8. 1-1 omkostninger","9. Miljø- og servicemål","10. Nettofinansielle poster","11. Over- eller underdækning","12. Kontrol med indtægtsrammen"],"not_rendered":{"charts":0,"images":0,"macros":1,"external_links":0,"defined_names":0,"comments":0,"pivot_tables":0},"unopened":[],"bounds":{"document_bytes":16777216,"sheet_cells":100000,"rows_first":2000,"rows_last":500,"rows_between":2000,"halvings":0,"cell_chars":16384,"cell_head_chars":4096},"cells_cut":0,"cells_raw":0,"read":"whole","date_system":"1900"}

{"sheet":"1. Forside","index":0,"n_rows":26,"n_cols":4,"rows_kept":26,"cut":false,"hidden":false,"merged":[[25,3,25,5],[24,3,24,5],[23,3,23,5],[22,3,22,5],[21,3,21,5],[20,3,20,5],[19,3,19,5],[18,3,18,5],[7,3,7,5],[12,3,12,5],[15,3,15,5],[16,3,16,5],[17,3,17,5]]}
["Tønder Vand A/S"]
[]
[]
[]
[]
[]
[]
[null,null,null,"Bilag A"]
[]
[]
[]
[]
[null,null,null,"Indholdsfortegnelse"]
[]
[]
[null,null,"Fane nr. 2","Samlet prisloft "]
[null,null,"Fane nr. 3","Driftsomkostninger"]
[null,null,"Fane nr. 4","Historiske investeringer "]
[null,null,"Fane nr. 5","Gennemførte investeringer"]
[null,null,"Fane nr. 6","Korrektion investeringer"]
[null,null,"Fane nr. 7","Planlagte investeringer"]
[null,null,"Fane nr. 8","1:1 omkostninger"]
[null,null,"Fane nr. 9","Miljø- og servicemål"]
[null,null,"Fane nr. 10","Nettofinansielle poster"]
[null,null,"Fane nr. 11","Over- eller underdækning"]
[null,null,"Fane nr. 12","Kontrol med indtægtsrammen og oversigt over ekstraordinære effektiviseringsgevinster"]

{"sheet":"2. Samlet prisloft","index":1,"n_rows":38,"n_cols":6,"rows_kept":38,"cut":false,"hidden":false,"merged":[[3,1,3,5]]}
[{"$f":"'1. Forside'!A1","v":"Tønder Vand A/S"}]
[]
[]
[null,"Fane 2. Samlet prisloft for 2015"]
[]
[null,"Driftsomkostninger"]
[null,"Driftsomkostninger i prisloftet for 2014",{"$f":"'3. Driftsomkostninger'!C20","v":7675323.8250000002},"kr."]
[null,"Bortfald af væsentlige omkostninger",{"$f":"-'3. Driftsomkostninger'!C16","v":0},"kr."]
[null,"Korrektion for prisudviklingen 2014-2015",{"$f":"'3. Driftsomkostninger'!C22","v":6140.2590600000003},"kr."]
[null,"Forhøjelse til effektivt niveau iht. benchmarkingen",{"$f":"'3. Driftsomkostninger'!C28","v":0},"kr."]
[null,"Korrektion for generelt effektiviseringskrav",{"$f":"-'3. Driftsomkostninger'!C34","v":-33771.424830000004},"kr."]
[null,"Korrektion for individuelt effektiviseringskrav",{"$f":"-'3. Driftsomkostninger'!C43","v":-282452},"kr."]
[null,"Driftsomkostninger i alt",{"$f":"SUM(C7:C12)","v":7365240.6592300003},"kr.",{"$f":"C13","v":7365240.6592300003}," kr."]
[null,"Investeringer"]
[null,"Tillæg for historiske investeringer",{"$f":"'4. Historiske investeringer'!C9","v":7228444.0217066864},"kr."]
[null,"Tillæg for gennemførte investeringer i 2011-2013",{"$f":"'5. Gennemførte investeringer'!F58","v":1888075.2233333332},"kr."]
[null,"Korrektion af tillæg for planlagte investeringer vedrørende 2013  ",{"$f":"'6. Korrektion investeringer'!C10","v":1152079.2600000002},"kr."]
[null,"Tillæg for planlagte investeringer i 2014 og 2015",{"$f":"'7. Planlagte investeringer'!F35","v":577653.33333333337},"kr."]
[null,"Investeringstillæg i alt",{"$f":"SUM(C15:C18)","v":10846251.838373354},"kr.",{"$f":"C19","v":10846251.838373354}," kr."]
[null,"Øvrige omkostninger mv."]
[null,"Tillæg for 1:1 omkostninger i 2015",{"$f":"'8. 1-1 omkostninger'!C10","v":668542},"kr."]
[null,"Tillæg for afgift for ledningsført vand i 2015",{"$f":"'8. 1-1 omkostninger'!C15","v":10909812},"kr."]
[null,"Tillæg vedr. revisorerklæringer og DANVA/FVD-kontingent",{"$f":"'8. 1-1 omkostninger'!C21","v":134000},"kr."]
[null,"Korrektion ift. faktiske 1:1 omkostninger i 2013",{"$f":"'8. 1-1 omkostninger'!C27","v":-89406},"kr."]
[null,"Tillæg for driftsomkostninger til miljø- og servicemål i 2015",{"$f":"'9. Miljø- og servicemål'!C8","v":300000},"kr."]
[null,"Korrektion ift. faktiske driftsomkostninger til miljø- og servicemål i 2013",{"$f":"'9. Miljø- og servicemål'!C15","v":0},"kr."]
[null,"Tillæg/fradrag for nettofinansielle poster i 2015",{"$f":"'10. Nettofinansielle poster'!C9","v":1222325},"kr."]
[null,"Korrektion ift. faktiske nettofinansielle poster i 2013",{"$f":"'10. Nettofinansielle poster'!C16","v":1128188},"kr."]
[null,"Øvrige omkostninger mv. i alt",{"$f":"SUM(C21:C28)","v":14273461},"kr.",{"$f":"C29","v":14273461}," kr."]
[null,"Historisk over- eller underdækning"]
[null,"Tillæg/fradrag for over- eller underdækning til og med 2010",{"$f":"'11. Over- eller underdækning'!C11","v":-278947.37301587302},"kr.",{"$f":"C31","v":-278947.37301587302}," kr."]
[null,"Korrektion i forhold til tidligere indtægtsramme "]
[null,"Korrektion for overholdelse af indtægtsramme i prisloft 2013",{"$f":"'12. Kontrol med indtægtsrammen'!E27","v":-248286.01421929896},"kr.",{"$f":"C33","v":-248286.01421929896}," kr."]
[null,"Samlet prisloft"]
[null,"Indtægtsramme i 2015 ",null,null,{"$f":"SUM(E13:E33)","v":31957720.110368181}," kr."]
[null,"Debiteret vandmængde i 2013",null,null,1650174," m3"]
[null,"Prisloft 2015",null,null,{"$f":"E35/E36","v":19.366272956893141}," kr./m3"]
[null,"Prisloft 2015 ekskl. afgift for ledningsført vand ",null,null,{"$f":"(E35-C22)/E36","v":12.754962876865216}," kr./m3"]

{"sheet":"3. Driftsomkostninger","index":2,"n_rows":43,"n_cols":4,"rows_kept":43,"cut":false,"hidden":false,"merged":[[3,1,3,3]]}
[{"$f":"'1. Forside'!A1","v":"Tønder Vand A/S"}]
[]
[]
[null,"Fane 3. Driftsomkostninger "]
[]
[null,"Driftsomkostningerne i prisloftet for 2014"]
[null,"Korrigerede driftsomkostninger i prisloftet for 2013 (DOiPL 2013)",7830455,"kr."]
[null,"Prisfremskrivning 1,5 pct.",{"$f":"0.015*SUM(C7:C7)","v":117456.825},"kr."]
[null,"Generelt effektiviseringskrav (0 pct.)",0,"kr."]
[null,"Individuelt effektiviseringskrav ",-272588,"kr."]
[null,"Driftsomkostningerne i prisloftet for 2014 (DOiPL 2014)",{"$f":"SUM(C7:C10)","v":7675323.8250000002},"kr."]
[]
[]
[null,"Korrektion for forventet bortfald af væsentlige omkostninger"]
[null,"Selskabets indberettede bortfald af væsentlige omkostninger inden 2015",0,"kr."]
[null,"Korrektion for forventet bortfald ",{"$f":"SUM(C15:C15)","v":0},"kr."]
[]
[]
[null,"Korrektion for prisudviklingen fra 2014-2015"]
[null,"Driftsomkostningerne i prisloftet for 2014",{"$f":"C11-C16","v":7675323.8250000002},"kr."]
[null,"Prisudvikling 2014 - 2015 ",0.08,"pct."]
[null,"Korrektion for prisudvikling",{"$f":"C20*(C21/100)","v":6140.2590600000003},"kr."]
[]
[]
[null,"Eventuel forhøjelse til effektivt niveau iht. benchmarkingen"]
[null,"Selskabets effektive driftsomkostninger iht. benchmarkingen",5345095,"kr."]
[null,"Selskabets pristalskorrigerede driftsomkostninger i 2015-niveau",{"$f":"C20+C22","v":7681464.0840600003},"kr."]
[null,"Eventuel forhøjelse til effektivt niveau",{"$f":"IF(C27>C26,0,C26-C27)","v":0},"kr."]
[]
[]
[null,"Korrektion for generelt effektiviseringskrav"]
[null,"Driftsomkostningerne i prisloftet for 2014",{"$f":"C20","v":7675323.8250000002},"kr. "]
[null,"Generelt effektiviseringskrav ",0.44,"pct."]
[null,"Endeligt generelt effektiviseringskrav",{"$f":"C32*(C33/100)","v":33771.424830000004},"kr. "]
[]
[]
[null,"Korrektion for individuelt effektiviseringskrav"]
[null,"Rå effektiviseringspotentiale",2466849,"kr."]
[null,"Effektiviseringspotentiale efter eventuel korrektion for særlige forhold",2330228,"kr."]
[null,"Effektiviseringspotentiale efter forsigtighedshensyn",1129808,"kr."]
[null,"Effektiviseringspotentiale efter eventuel korrektion for sammensætning af signifikante costdrivere",1129808,"kr. "]
[null,"Umiddelbart effektiviseringskrav",{"$f":"C41/4","v":282452},"kr."]
[null,"Endeligt individuelt effektiviseringskrav",{"$f":"IF(C42>0.05*C20,0.05*C20,IF(C42<0.01*C20,0,C42))","v":282452},"kr. "]

{"sheet":"4. Historiske investeringer","index":3,"n_rows":9,"n_cols":4,"rows_kept":9,"cut":false,"hidden":false,"merged":[[3,1,3,2]]}
[{"$f":"'3. Driftsomkostninger'!A1","v":"Tønder Vand A/S"}]
[]
[]
[null,"Fane 4. Historiske investeringer "]
[]
[null,"Tillæg for historiske investeringer "]
[null,"Værdi af selskabets materielle anlægsaktiver pr. 1. januar 2010",311404329.73920679,"kr."]
[null,"Den årlige standardafskrivning på de materielle anlægsaktiver iht. POLKA",7228444.0217066864,"kr."]
[null,"Tillæg i alt i 2015",{"$f":"C8","v":7228444.0217066864},"kr."]

{"sheet":"5. Gennemførte investeringer","index":4,"n_rows":58,"n_cols":7,"rows_kept":58,"cut":false,"hidden":false,"merged":[[3,1,3,5],[6,5,6,6]]}
[{"$f":"'4. Historiske investeringer'!A1","v":"Tønder Vand A/S"}]
[]
[]
[null,"Fane 5. Gennemførte investeringer i 2010 - 2013 "]
[]
[null,"Tillæg for gennemførte investeringer i 2013"]
[null," Beskrivelse af investeringen   ","Årstal ","Std. levetid (år)   "," Anskaffelses-pris (kr.)","Afskrivning "]
[null,"Afregningsmålere, elektroniske > Ø110 mm",2013,10,2563075,{"$f":"E8/D8","v":256307.5},"kr."]
[null,"Beluftningsanlæg, kompressorbeluftning",2013,25,81034,3241.36,"kr."]
[null,"Elanlæg - vandværk",2013,25,478934,19157.36,"kr."]
[null,"Etageareal kontor og mandskabsfaciliteter",2013,75,296022,3946.96,"kr."]
[null,"Etageareal vandbehandlingsbygning",2013,75,2300195,30669.266666666666,"kr."]
[null,"Filteranlæg, trykfiltre, dobbelt filtrering",2013,25,983886,{"$f":"E13/D13","v":39355.440000000002},"kr."]
[null,"Rentvandsbeholder insitu støbt",2013,50,1459490,29189.8,"kr."]
[null,"Sikring (terror, hærværk), SRO",2013,10,16281,1628.1,"kr."]
[null,"Skyllevand-/slamhåndteringsanlæg - lukkede betonbeholdere",2013,50,342183,6843.66,"kr."]
[null,"SRO-anlæg, vandværk",2013,10,333160,33316,"kr."]
[null,"Udpumpningsanlæg, rentvandspumper på vandværk",2013,25,164127,6565.08,"kr."]
[null,"Beluftningsanlæg, kompressorbeluftning",2013,25,107959,4318.3599999999997,"kr."]
[null,"Elanlæg",2013,20,800905,40045.25,"kr."]
[null,"Etageareal kontor og mandskabsfaciliteter",2013,75,274648,3661.9733333333334,"kr."]
[null,"Etageareal vandbehandlingsbygning",2013,75,18785066,250467.54666666666,"kr."]
[null,"Instrumenter (flowmåler+tryk transducer+alarmer)",2013,10,309325,30932.5,"kr."]
[null,"Rentvandsbeholder insitu støbt",2013,50,3051578,61031.56,"kr."]
[null,"Skyllevand-/slamhåndteringsanl. - åbne med faste sider/bund",2013,50,423756,8475.1200000000008,"kr."]
[null,"SRO-anlæg, vandværk",2013,10,320700,32070,"kr."]
[null,"Udpumpningsanlæg, rentvandspumper på vandværk",2013,25,395389,15815.56,"kr."]
[null,"Ø 50mm < Ledningsnet = Ø110 mm",2013,75,834,11.12,"kr."]
[null,"Stik på ledningsnet, Konstruktioner",2013,75,145478,1939.7066666666667,"kr."]
[null,"Ledningsnet = Ø50 mm",2013,75,198524,2646.9866666666667,"kr."]
[null,"Ø 50mm < Ledningsnet = Ø110 mm",2013,75,46748,623.30666666666662,"kr."]
[null,"Ventiler på Ø110 mm < Ledningsnet = Ø 250 mm",2013,75,1103439,14712.52,"kr."]
[null,"SRO-brønd/kvarterbrønd/sektionsbrønd, Konstruktioner",2013,50,288909,5778.18,"kr."]
[null,"Ledningsnet = Ø50 mm",2013,75,15591,207.88,"kr."]
[null,"Stik på ledningsnet, Konstruktioner",2013,75,115892,1545.2266666666667,"kr."]
[null,"Ventiler på ledningsnet = Ø50 mm",2013,75,172526,2300.3466666666668,"kr."]
[null,"Ø 50mm < Ledningsnet = Ø110 mm",2013,75,424949,5665.9866666666667,"kr."]
[null,"Stik på ledningsnet, Konstruktioner",2013,75,49896,665.28,"kr."]
[null,"Ventiler på ledningsnet = Ø50 mm",2013,75,68089,907.85333333333335,"kr."]
[null,"Ø 50mm < Ledningsnet = Ø110 mm",2013,75,218837,2917.8266666666668,"kr."]
[null,"Stik på ledningsnet, Konstruktioner",2013,75,17890,238.53333333333333,"kr."]
[null,"Ventiler på ledningsnet = Ø50 mm",2013,75,24413,325.50666666666666,"kr."]
[null,"Ø 50mm < Ledningsnet = Ø110 mm",2013,75,53115,708.2,"kr."]
[null,"Stik på ledningsnet, Konstruktioner",2013,75,108385,1445.1333333333334,"kr."]
[null,"Ventiler på ledningsnet = Ø50 mm",2013,75,141183,1882.44,"kr."]
[null,"Ventiler på Ø 50mm < Ledningsnet = Ø110 mm",2013,75,94594,1261.2533333333333,"kr."]
[null,"Stik på ledningsnet, Konstruktioner",2013,75,35051,467.34666666666669,"kr."]
[null,"Ventiler på ledningsnet = Ø50 mm",2013,75,47831,637.74666666666667,"kr."]
[null,"Ø 50mm < Ledningsnet = Ø110 mm",2013,75,102545,1367.2666666666667,"kr."]
[null,"Ledningsnet = Ø50 mm",2013,75,13318,177.57333333333332,"kr."]
[null,"Stik på ledningsnet, Konstruktioner",2013,75,192680,2569.0666666666666,"kr."]
[null,"Ventiler på ledningsnet = Ø50 mm",2013,75,262938,3505.84,"kr."]
[null,"Ø 50mm < Ledningsnet = Ø110 mm",2013,75,448243,5976.5733333333337,"kr."]
[null,"Køretøjer, entreprenørmaskiner",2013,5,33660,6732,"kr."]
[null,"Køretøjer, entreprenørmaskiner",2013,5,121931,24386.2,"kr."]
[null,"Tillæg for 2013 ",null,null,null,{"$f":"SUM(F8:F55)","v":968641.29666666675},"kr."]
[null,"Tillæg for 2010 - 2012",null,null,null,919433.92666666652,"kr."]
[null,"Samlet tillæg for gennemførte investeringer",null,null,null,{"$f":"F56+F57","v":1888075.2233333332},"kr."]

{"sheet":"6. Korrektion investeringer","index":5,"n_rows":10,"n_cols":4,"rows_kept":10,"cut":false,"hidden":false,"merged":[[3,1,3,3]]}
[{"$f":"'5. Gennemførte investeringer'!A1","v":"Tønder Vand A/S"}]
[]
[]
[null,"Fane 6. Korrektion af tillæg for planlagte investeringer"]
[]
[null,"Korrektion af tillæg for planlagte investeringer vedr. 2013"]
[null,"Tillæg for planlagte investeringer i 2013 i prisloft 2013",80810,"kr."]
[null,"Tillæg for planlagte investeringer i 2013 i prisloft 2014",704393.33333333337,"kr."]
[null,"Selskabets faktiske afskrivninger på gennemførte investeringer i 2013",{"$f":"'5. Gennemførte investeringer'!F56","v":968641.29666666675},"kr."]
[null,"Korrektion af tillæg for planlagte investeringer vedr. 2013",{"$f":"C9-C7+C9-C8","v":1152079.2600000002},"kr."]

{"sheet":"7. Planlagte investeringer","index":6,"n_rows":35,"n_cols":7,"rows_kept":35,"cut":false,"hidden":false,"merged":[[6,5,6,6],[3,1,3,6]]}
[{"$f":"'6. Korrektion investeringer'!A1","v":"Tønder Vand A/S"}]
[]
[]
[null,"Fane 7. Planlagte investeringer "]
[]
[null,"Tillæg for planlagte investeringer i 2014 og 2015"]
[null,"Beskrivelse af investeringen   ","Årstal ","Std. levetid (år)   ","Anskaffelses-pris (kr.)   ","Afskrivning"]
[null,"Afregningsmålere, elektroniske = Ø 110mm (Qn 10)",2014,10,1836000,{"$f":"E8/D8","v":183600},"kr."]
[null,"Ø 50mm < Ledningsnet = Ø110 mm",2014,75,585000,{"$f":"E9/D9","v":7800},"kr."]
[null,"Ø 50mm < Ledningsnet = Ø110 mm",2014,75,400000,{"$f":"E10/D10","v":5333.333333333333},"kr."]
[null,"Ø 50mm < Ledningsnet = Ø110 mm",2014,75,160000,2133.3333333333335,"kr."]
[null,"Ø110 mm < Ledningsnet = Ø 250 mm",2014,75,900000,12000,"kr."]
[null,"Ø110 mm < Ledningsnet = Ø 250 mm",2014,75,450000,6000,"kr."]
[null,"Ø110 mm < Ledningsnet = Ø 250 mm",2014,75,1500000,20000,"kr."]
[null,"Ø 50mm < Ledningsnet = Ø110 mm",2014,75,165000,2200,"kr."]
[null,"Ø110 mm < Ledningsnet = Ø 250 mm",2014,75,336000,4480,"kr."]
[null,"Ø 50mm < Ledningsnet = Ø110 mm",2014,75,468000,6240,"kr."]
[null,"Ø110 mm < Ledningsnet = Ø 250 mm",2014,75,306000,4080,"kr."]
[null,"Ø110 mm < Ledningsnet = Ø 250 mm",2014,75,650000,8666.6666666666661,"kr."]
[null,"Ø 50mm < Ledningsnet = Ø110 mm",2015,75,812500,10833.333333333334,"kr."]
[null,"Ø 50mm < Ledningsnet = Ø110 mm",2015,75,270000,3600,"kr."]
[null,"Ø 50mm < Ledningsnet = Ø110 mm",2015,75,380000,5066.666666666667,"kr."]
[null,"Ø 50mm < Ledningsnet = Ø110 mm",2015,75,855000,11400,"kr."]
[null,"Ø 50mm < Ledningsnet = Ø110 mm",2015,75,350000,4666.666666666667,"kr."]
[null,"Ø110 mm < Ledningsnet = Ø 250 mm",2015,75,675000,9000,"kr."]
[null,"Ø 50mm < Ledningsnet = Ø110 mm",2015,75,460000,6133.333333333333,"kr."]
[null,"Ø 50mm < Ledningsnet = Ø110 mm",2015,75,400000,5333.333333333333,"kr."]
[null,"Ø 50mm < Ledningsnet = Ø110 mm",2015,75,1237500,16500,"kr."]
[null,"Bygning for trykforøgere",2015,75,400000,5333.333333333333,"kr."]
[null,"Afregningsmålere, elektroniske = Ø 110mm (Qn 10)",2015,10,1831000,183100,"kr."]
[null,"Ø110 mm < Ledningsnet = Ø 250 mm",2015,75,2034000,27120,"kr."]
[null,"Råvandsstation komplet montering og boringshus/tørbrønd",2015,30,811000,27033.333333333332,"kr."]
[null,"Tillæg for 2014",null,null,null,{"$f":"SUMIF(C8:C32,\"2014\",F8:F32)","v":262533.33333333337},"kr."]
[null,"Tillæg for 2015",null,null,null,{"$f":"SUMIF(C8:C32,\"2015\",F8:F32)","v":315120},"kr."]
[null,"Tillæg i alt",null,null,null,{"$f":"F33+F34","v":577653.33333333337},"kr."]

{"sheet":"8. 1-1 omkostninger","index":7,"n_rows":27,"n_cols":4,"rows_kept":27,"cut":false,"hidden":false,"merged":[[3,1,3,3],[17,1,17,3],[23,1,23,3]]}
[{"$f":"'7. Planlagte investeringer'!A1","v":"Tønder Vand A/S"}]
[]
[]
[null,"Fane 8. 1:1 omkostninger"]
[]
[null,"Tillæg for budgetterede 1:1 omkostninger i 2015"]
[null,"Betaling til Forsyningssekretariatet",33000,"kr."]
[null,"Køb af varer og tjenesteydelser hos et andet prisloftreguleret vandselskab",617618,"kr."]
[null,"Ejendomsskatter",17924,"kr."]
[null,"Tillæg i alt ",{"$f":"SUM(C7:C9)","v":668542},"kr."]
[]
[]
[null,"Tillæg for afgift for ledningsført vand i 2015"]
[null,"Afgift for ledningsført vand (6,53 kr./m3)",10909812,"kr."]
[null,"Tillæg i alt ",{"$f":"SUM(C14:C14)","v":10909812},"kr."]
[]
[]
[null,"Tillæg for budgetterede nødvendige udgifter til revisorerklæringer samt ordinært medlemskab af DANVA og FVD i 2015"]
[null,"Betaling for ordinært medlemskab af DANVA/FVD",94000,"kr."]
[null,"Betaling for revisorerklæringer",40000,"kr."]
[null,"Tillæg i alt ",{"$f":"SUM(C19:C20)","v":134000},"kr."]
[]
[]
[null,"Korrektion af tillæg for faktiske 1:1 omkostninger (inkl. afgift for ledningsført vand, revisorerklæringer og ordinært medlemskab af DANVA/FVD) i 2013"]
[null,"Selskabets faktiske 1:1 omkostninger mv. i 2013, jf. reguleringsregnskabet",11711683,"kr."]
[null,"Tillæg for budgetterede 1:1 omkostninger mv. i prisloft 2013",11801089,"kr."]
[null,"Korrektion af tillæg for budgetterede 1:1 omkostninger mv. i 2013",{"$f":"C25-C26","v":-89406},"kr."]

{"sheet":"9. Miljø- og servicemål","index":8,"n_rows":15,"n_cols":4,"rows_kept":15,"cut":false,"hidden":false,"merged":[[3,1,3,3]]}
["Tønder Vand A/S"]
[]
[]
[null,"Fane 9. Driftsomkostninger til miljø- og servicemål "]
[]
[null,"Tillæg for budgetterede driftsomkostninger til miljø- og servicemål i 2015"]
[null,"Ledelsessystem",300000,"kr."]
[null,"Tillæg i alt",{"$f":"SUM(C7:C7)","v":300000},"kr."]
[]
[]
[]
[null,"Korrektion af tillæg for faktiske driftsomkostninger til miljø- og servicemål i 2013"]
[null,"Selskabets faktiske driftsomkostninger til miljø- og servicemål i 2013, jf. reguleringsregnskabet",0,"kr."]
[null,"Tillæg for budgetterede driftsomkostninger til miljø- og servicemål i prisloft 2013",0,"kr."]
[null,"Korrektion af tillæg for budgetterede driftsomkostninger til miljø- og servicemål i 2013",{"$f":"C13-C14","v":0},"kr."]

{"sheet":"10. Nettofinansielle poster","index":9,"n_rows":16,"n_cols":4,"rows_kept":16,"cut":false,"hidden":false,"merged":[[3,1,3,3]]}
[{"$f":"'2. Samlet prisloft'!A1","v":"Tønder Vand A/S"}]
[]
[]
[null,"Fane 10. Nettofinansielle poster"]
[]
[null,"Tillæg for budgetterede nettofinansielle poster i 2015"]
[null,"Budgetterede renteudgifter og gebyrer i 2015",1244000,"kr."]
[null,"Budgetterede renteindtægter i 2015",21675,"kr."]
[null,"Tillæg/fradrag i alt",{"$f":"C7-C8","v":1222325},"kr."]
[]
[]
[]
[null,"Korrektion af tillæg for faktiske nettofinansielle poster i 2013"]
[null,"Selskabets faktiske nettofinansielle poster i 2013, jf. reguleringsregnskabet",1227188,"kr."]
[null,"Tillæg for budgetterede nettofinansielle poster i prisloft 2013",99000,"kr."]
[null,"Korrektion af tillæg for budgetterede nettofinansielle poster i 2013",{"$f":"C14-C15","v":1128188},"kr."]

{"sheet":"11. Over- eller underdækning","index":10,"n_rows":11,"n_cols":4,"rows_kept":11,"cut":false,"hidden":false,"merged":[[3,1,3,3]]}
[{"$f":"'1. Forside'!A1","v":"Tønder Vand A/S"}]
[]
[]
[null,"Fane 11. Over- eller underdækning til og med 2010"]
[]
[null,"Tillæg/fradrag for over- eller underdækning til og med 2010"]
[null,"Opgjort over- eller underdækning per 31. december 2010",-2526526,"kr."]
[null,"Heraf beløb indregnet i prislofterne for 2011 - 2014",-852841.76190476189,"kr."]
[null,"Endnu ikke indregnet over- eller underdækning",{"$f":"C7-C8","v":-1673684.2380952381},"kr."]
[null,"Resterende indregningsperiode (fastsat i prisloftet for 2012)",6,"år"]
[null,"Tillæg/fradrag i alt",{"$f":"IF(C7=0,0,C9/C10)","v":-278947.37301587302},"kr."]

{"sheet":"12. Kontrol med indtægtsrammen","index":11,"n_rows":38,"n_cols":12,"rows_kept":38,"cut":false,"hidden":false,"merged":[[3,1,3,5],[30,1,30,4],[5,1,5,5]]}
[{"$f":"'11. Over- eller underdækning'!A1","v":"Tønder Vand A/S"}]
[]
[]
[null,"Fane 12. Korrektion for overholdelse af indtægtsrammen i prisloftet for 2013"]
[]
[null,"Samlet opgørelse vedrørende overholdelse af indtægtsrammen i prisloftet for 2013"]
[null,"Indtægtsramme i prisloftet for 2013",null,null,28526600.985780701,"kr."]
[null,"Ikke anvendt likviditet vedrørende investeringer i 2013"]
[null,"Tillæg for historiske investeringer ",7458798.3254360547,"kr."]
[null,"Tillæg for gennemførte investeringer i 2011",438543,"kr."]
[null,"Korrektion af tillæg for planlagte investeringer i 2011",-111561,"kr."]
[null,"Tillæg for planlagte investeringer i 2012 og 2013",954271,"kr."]
[null,"Indtægter fra tilslutningsbidrag",114727,"kr."]
[null,"Indtægter fra salg af anlægsaktiver",0,"kr."]
[null,"Erstatninger vedr. anlægsaktiver mv.",0,"kr."]
[null,"Ekstraordinær effektiviseringsgevinst anvendt til investeringer",0,"kr."]
[null,"Udgifter til investeringer",-10009755,"kr."]
[null,"Ikke anvendt likviditet vedr. investeringer i alt",{"$f":"SUM(C9:C17)","v":-1154976.6745639443},"kr.",{"$f":"IF(C18<0,0,-C18)","v":0},"kr."]
[null,"Ekstraordinære effektiviseringsgevinster anvendt til takstnedsættelse"]
[null,"Ekstraordinær effektiviseringsgevinst anvendt til takstnedsættelse",0,"kr.",{"$f":"-C20","v":0},"kr."]
[null,"Korrektion af ikke opkrævet tillæg fra 2011 i prisloft 2013"]
[null,"Korrektion af ikke opkrævet tillæg fra 2011 i prisloft 2013",0,"kr.",{"$f":"-C22","v":0},"kr."]
[null,"Indtægter fra primære aktiviteter mv."]
[null,"Indtægter fra kubikmetertakster, faste takster, særbidrag, målergebyrer samt andre takster og gebyrer",28306243,"kr."]
[null,"Andre indtægter i prisloftåret, som selskabet har opnået i forbindelse med eller som følge af selskabets primære aktiviteter",468644,"kr."]
[null,"Indtægter fra primære aktiviteter mv. i alt",{"$f":"SUM(C24:C25)","v":28774887},"kr.",{"$f":"-C26","v":-28774887},"kr."]
[null,"Tillæg/fradrag i prisloftet for 2015 i alt",null,null,{"$f":"E7+E18+E20+E22+E26","v":-248286.01421929896},"kr."]
[]
[]
[]
[null,"Oversigt over ekstraordinære effektiviseringsgevinster"]
[]
[null,null,2012,null,2013,null,2014,null,2015,null,2016]
[null,"Indhentet ekstraordinær effektiviseringsgevinst",100899,"kr.",0,"kr.",null,"kr.",null,"kr.",null,"kr."]
[null,"Gevinst anvendt til investeringer",0,"kr.",0,"kr.",null,"kr.",null,"kr.",null,"kr."]
[null,"Gevinst anvendt til takstnedsættelse",0,"kr.",0,"kr.",null,"kr.",null,"kr.",null,"kr."]
[null,"Korrektion for  effektiviseringsgevinst der ikke er anvendt inden 4 år",0,"kr.",0,"kr.",null,"kr.",null,"kr.",{"$f":"IF(C38>SUM(E35:I36),C38-SUM(E35:I36),0)*-1","v":-100899},"kr."]
[null,"Resterende gevinst",{"$f":"C34-C35-C36","v":100899},"kr.",{"$f":"C38+E34-E35-E36","v":100899},"kr.",{"$f":"E38+G34-G35-G36","v":100899},"kr.",{"$f":"G38+I34-I35-I36","v":100899},"kr.",{"$f":"K34-K35-K36+K37+I38","v":0},"kr."]